Workbook

Sheet Данные для расчета
B3: Исходные данные для расчета
B4: Монтаж системы воздуховодов | C4: Стоимость | E4: Кол-во
B5: ВБИТЬ НАИМЕНОВАНИЕ УСТАНОВКИ | C5: 245000 | D5: р. | E5: 550 | F5: м3/ч | G5: вбить производительность и модель выбранной установки в м3/ч из счета
B6: Воздуховод D75 SCHIBERG (50 м) | C6: 60000 | D6: р. | G6: вбить стоимость из счета
B7: Комплект прокладок, муфт, заглушек для гофрированного воздуховода | C7: 20000 | D7: р. | G7: вбить стоимость из счета
B8: Коллекторы (воздухораспределительные коробки) | C8: 35000 | D8: р. | E8: 2 | F8: шт. | G8: вбить стоимость и кол-во из счета
B9: Магистральные воздуховоды и фасонные изделия | C9: 40000 | D9: р. | G9: вбить стоимость из счета оцинкованных воздуховодов
B10: Тепло/шумо изоляция | C10: 30000 | D10: р. | E10: 67 | F10: м.п. | G10: вбить сумму стоимость из счет и п.м. оцинкованных воздуховодов
B11: Установка и подключение приточного/вытяжного диффузора | C11: 45000 | D11: р. | E11: 14 | G11: вбить стоимость из счета и кол-во диффузоров и решеток
B16: Монтаж и обвязка ПВУ | C16: Стоимость | E16: Кол-во
B17: ВБИТЬ МОДЕЛЬ ЗАСЛОНКИ | C17: 24000 | E17: 2 | G17: вбить модель, стоимость и кол-во
B18: ВБИТЬ МОДЕЛЬ ПРИТОЧНОЙ/ПРИТОЧНО-ВЫТЯЖНОЙ РЕШЕТКИ, ЦВЕТ | C18: 11500 | E18: 1 | G18: вбить модель, стоимость и кол-во
B19: Шумоглушители и эл приводы | C19: 2580 | E19: 2 | G19: вбить модель, стоимость и кол-во
B20: Монтаж выносного пульта/датчиков | E20: 1 | G20: вбить кол-во датчиков и пульта
B21: Кол-во магистральных линий от ПВУ до КШ | E21: 2 | G21: вбить кол-во
B22: Монтаж кровельного аэратора | E22: 1 | G22: вбить кол-во

Sheet Работы
A1: 1 | B1: 0,7 коэф для одноэтажных домов в 1 этап
B2: 1 коэф для всех остальных
B3: ОПЛАТА РАБОТ ПО ВЕНТИЛЯЦИИ прораб и бригада | C3: Количество | D3: цена за единицу БРИГАДА | E3: Стоимость БРИГАДА | F3: цена за единицу ПРОРАБ | G3: Стоимость ПРОРАБ
B4: Этап 1
B5: Прокладка воздуховодов до приточного/вытяжного диффузора (комплект на диффузор) с установкой муфты | C5: ='Данные для расчета'!E5/30 -> 18.33333333 | D5: =3850*$A$1 -> 3850 | E5: =C5*D5 -> 70583.33333 | F5: =D5*0.2 -> 770 | G5: =C5*F5 -> 14116.66667
B6: Установка распределительной коробки и подключение воздуховодов | C6: ='Данные для расчета'!E8 -> 2 | D6: =3300*$A$1 -> 3300 | E6: =C6*D6 -> 6600 | F6: =D6*0.2 -> 660 | G6: =C6*F6 -> 1320
B7: Обклейка тепло/шумо изоляцией | C7: ='Данные для расчета'!E10 -> 67 | D7: =300*$A$1 -> 300 | E7: 20100 | F7: =D7*0.2 -> 60 | G7: 4020
B8: Установка и подключение приточного/вытяжного диффузора | C8: ='Данные для расчета'!E11 -> 14 | D8: =770*$A$1 -> 770 | E8: =C8*D8 -> 10780 | F8: =D8*0.2 -> 154 | G8: 2156
B9: Итого этап 1 | E9: =SUM(E4:E8) -> 108063.3333 | G9: =SUM(G4:G8) -> 21612.66667
B11: Этап 2
B12: Монтаж вентиляционной установки (включая все подключения)+ пробный запуск с настройкой | C12: 1 | D12: =22000*$A$1 -> 22000 | E12: =C12*D12 -> 22000 | F12: =D12*0.2 -> 4400 | G12: =C12*F12 -> 4400
B13: Установка шумоглушителя | C13: ='Данные для расчета'!E19 -> 2 | D13: =2750*$A$1 -> 2750 | E13: 5500 | F13: 550 | G13: 1100
B14: Установка стенового вентиля Out/in с проходными отверстиями | C14: ='Данные для расчета'!E18 -> 1 | D14: =11000*$A$1 -> 11000 | E14: 11000 | F14: 2200 | G14: 2200
B15: Монтаж датчикаов влажности (комплект)/пульта | C15: ='Данные для расчета'!E20 -> 1 | D15: =1750*$A$1 -> 1750 | E15: 1750 | F15: 350 | G15: 350
B16: Прокладка трассы от установки до распределительной коробки (комплект) | C16: ='Данные для расчета'!E21 -> 2 | D16: =7150*$A$1 -> 7150 | E16: 14300 | F16: 1430 | G16: 2860
B17: Аэратор D250 на кровле, цвет стандарт | C17: 1 | D17: 8433 | E17: 8433 | F17: 1686.6 | G17: 1686.6
B18: Итого этап 2 | E18: =SUM(E12:E16) -> 54550 | G18: =SUM(G12:G17) -> 12596.6
B21: Итого этап 1 + этап 2 | E21: =E9+E18 -> 162613.3333 | G21: =G9+G18 -> 34209.26667

Sheet 1ый этап
A2: Приложение № к Договору подряда № ______________от_____________
A3: =TODAY() -> 2024-07-19 | B3: Данный сметный расчёт действителен 7 календарных дней. По истечению срока, цены могут быть изменены.
A4: Сметный расчет Вентиляция
A5: Проектирование
A6: Материалы/услуги | B6: Описание | C6: Кол-во | D6: Ед.изм | E6: Мат-ал, руб | F6: Работа, руб | G6: Итого, руб | I6: Материал | J6: Бригада | K6: Прораб | L6: Итого | M6: Рента | N6: Стоимость проекта
A7: Проектные работы | B7: Разработка документов для монтажа системы вентиляции | C7: 1 | D7: услуга | E7: =J7/H7 -> 48692.30769 | G7: =E7 -> 48692.30769 | H7: 0.65 | J7: =C7*N7 -> 31650 | L7: =J7 -> 31650 | N7: 31650
A8: Итого: | G8: =G7 -> 48692.30769 | L8: =L7 -> 31650 | M8: =IF(G8=0,"",(G8-L8)/G8) -> 0.35
A9: Приточно-вытяжная вентиляция
A10: Материалы/услуги | B10: Описание | C10: Кол-во | D10: Ед.изм | E10: Мат-ал, руб | F10: Работа, руб | G10: Итого, руб | I10: Материал | J10: Бригада | K10: Прораб | L10: Итого | M10: Рента
A11: Монтаж системы приточно-вытяжных воздуховодов | B11: Воздуховод D75 SCHIBERG (50 м) | C11: 1 | D11: компл. | E11: =I11/H11*$J$33 -> 75000 | G11: =E11+F11 -> 75000 | H11: 0.8 | I11: ='Данные для расчета'!C6*C11 -> 60000 | J11: =Работы!E9 -> 108063.3333 | K11: =Работы!G9 -> 21612.66667 | L11: =SUM(I11:K11) -> 189676 | M11: =IF(G11=0,"",(G11-I11)/G11) -> 0.2
B12: Комплект прокладок, муфт, заглушек для гофрированного воздуховода | C12: 1 | D12: компл. | E12: 25000 | G12: 25000 | H12: 0.8 | I12: ='Данные для расчета'!C7*C12 -> 20000 | L12: =SUM(I12:K12) -> 20000 | M12: =IF(G12=0,"",(G12-I12)/G12) -> 0.2
B13: Коллекторы (воздухораспределительные коробки) | C13: 1 | D13: компл. | E13: 43750 | G13: 43750 | H13: 0.8 | I13: ='Данные для расчета'!C8*C13 -> 35000 | L13: 35000 | M13: 0.2
B14: Магистральные воздуховоды и фасонные изделия | C14: 1 | D14: компл. | E14: 57142.85714 | G14: =E14+F14 -> 57142.85714 | H14: 0.7 | I14: ='Данные для расчета'!C9*C14 -> 40000 | L14: =SUM(I14:K14) -> 40000 | M14: =IF(G14=0,"",(G14-I14)/G14) -> 0.3
B15: Тепло/шумо изоляция | C15: 1 | D15: компл. | E15: 37500 | G15: 37500 | H15: 0.8 | I15: ='Данные для расчета'!C10*C15 -> 30000 | L15: 30000 | M15: 0.2
B16: Установка диффузора/решётки, адаптера | C16: 1 | D16: компл. | E16: 56250 | G16: 56250 | H16: 0.8 | I16: ='Данные для расчета'!C11*C16 -> 45000 | L16: 45000 | M16: 0.2
B17: Расходные материалы, крепёж | C17: 1 | D17: компл. | E17: 6206.896552 | G17: 6206.896552 | H17: 0.725 | I17: =C17*Узлы!D117 -> 4500 | L17: =SUM(I17:K17) -> 4500 | M17: 0.275
A18: Итого материал: | G18: =SUM(E11:E17) -> 300849.7537 | L18: =SUM(I11:I17) -> 234500 | M18: =IF(G18=0,"",(G18-L18)/G18) -> 0.2205411601 | N18: =(SUM(G18:G19)-SUM(L18:L19))/SUM(G18:G19) -> 0.4405683384
A19: Работа: | G19: =L19*2.7*K33 -> 350125.2 | L19: =J11+K11 -> 129676 | M19: 0.6296296296
A20: Дополнительно
A21: Материалы/услуги | B21: Описание | C21: Кол-во | D21: Ед.изм | E21: Мат-ал, руб | F21: Работа, руб | G21: Итого, руб | I21: Материал | J21: Бригада | K21: Прораб | L21: Итого | M21: Рента
A22: Проходные отверстия в плите | B22: Алмазное сверление | C22: 5 | D22: шт. | F22: =IF($C$22=0,0, IF($C$22<4,9000, IF($C$22>3,9000+2300*($C$22-3)))) -> 13600 | G22: =F22+E22 -> 13600 | K22: =IF($C$22=0,0, IF($C$22<4,6000, IF($C$22>3,6000+1700*($C$22-3)))) -> 9400
A23: Подготовительные и накладные расходы | B23: Приемка этапа работ инженерами технического надзора, соблюдение стандарта компании | C23: 1 | D23: Усл. | F23: 31000 | G23: =F23*C23 -> 31000 | J23: =1500+1500+1500+4200 -> 8700 | K23: =2500+800 -> 3300 | L23: =5500+6500 -> 12000
A24: Транспортные расходы | B24: Доставка оборудования и материалов на объект | C24: 1 | D24: усл. | F24: =L24/0.8 -> 18750 | G24: =F24 -> 18750 | J24: 5000 | K24: 5000 | L24: 15000
A25: Итого по смете: | G25: =G8+G18+G19+SUM(G22:G24) -> 763017.2614 | I25: =L18 -> 234500 | J25: =J11+SUM(J22:J24) -> 121763.3333 | K25: =K11+SUM(K22:K24) -> 39312.66667 | L25: =SUM(L22:L24,I25:K25)+L7 -> 454226 | M25: =(G27-L25)/G27 -> 0.4046976091
A26: Скидка: | G26: =G25*M26 -> 0
A27: Итого по смете со скидкой: | F27: =F25-G26 -> 0 | G27: =G25-G26 -> 763017.2614
A28: * При выполнении разводки под потолком необходимо добавить декоративный короб. При выполнении разводки в межэтажном перекрытии необходима дополнительная обрешётка.
A29: ** ПНР выполняется по факту готовности объекта
G30: =Узлы!D1 -> 2024-03-20 | J30: Коэффициент для ренты
J32: Мат | K32: Раб
J33: 1 | K33: 1

Sheet 1+2 этапы
A2: Приложение № к Договору подряда № ______________от_____________
A3: =TODAY() -> 2024-07-19 | B3: Данный сметный расчёт действителен 7 календарных дней. По истечению срока, цены могут быть изменены.
A4: Сметный расчет Вентиляция
A5: Проектирование
A6: Материалы/услуги | B6: Описание | C6: Кол-во | D6: Ед.изм | E6: Мат-ал, руб | F6: Работа, руб | G6: Итого, руб | I6: Материал | J6: Бригада | K6: Прораб | L6: Итого | M6: Рента | N6: Стоимость проекта
A7: Проектные работы | B7: Разработка документов для монтажа системы вентиляции | C7: 1 | D7: услуга | E7: =J7/H7 -> 48692.30769 | G7: =E7 -> 48692.30769 | H7: 0.65 | J7: =C7*N7 -> 31650 | L7: =J7 -> 31650 | N7: 31650
A8: Итого: | G8: =G7 -> 48692.30769 | L8: =L7 -> 31650 | M8: =IF(G8=0,"",(G8-L8)/G8) -> 0.35
A9: Приточно-вытяжная вентиляция
A10: Материалы/услуги | B10: Описание | C10: Кол-во | D10: Ед.изм | E10: Мат-ал, руб | F10: Работа, руб | G10: Итого, руб | I10: Материал | J10: Бригада | K10: Прораб | L10: Итого | M10: Рента
A11: Монтаж системы приточно-вытяжных воздуховодов | B11: Воздуховод D75 SCHIBERG (50 м) | C11: 1 | D11: компл. | E11: =I11/H11*$J$48 -> 75000 | G11: =E11+F11 -> 75000 | H11: 0.8 | I11: ='Данные для расчета'!C6*C11 -> 60000 | J11: =Работы!E9 -> 108063.3333 | K11: =Работы!G9 -> 21612.66667 | L11: =SUM(I11:K11) -> 189676 | M11: =IF(G11=0,"",(G11-I11)/G11) -> 0.2
B12: Комплект прокладок, муфт, заглушек для гофрированного воздуховода | C12: 1 | D12: компл. | E12: 25000 | G12: 25000 | H12: 0.8 | I12: ='Данные для расчета'!C7*C12 -> 20000 | L12: =SUM(I12:K12) -> 20000 | M12: =IF(G12=0,"",(G12-I12)/G12) -> 0.2
B13: Коллекторы (воздухораспределительные коробки) | C13: 1 | D13: компл. | E13: 43750 | G13: 43750 | H13: 0.8 | I13: ='Данные для расчета'!C8*C13 -> 35000 | L13: 35000 | M13: 0.2
B14: Магистральные воздуховоды и фасонные изделия | C14: 1 | D14: компл. | E14: 57142.85714 | G14: =E14+F14 -> 57142.85714 | H14: 0.7 | I14: ='Данные для расчета'!C9*C14 -> 40000 | L14: =SUM(I14:K14) -> 40000 | M14: =IF(G14=0,"",(G14-I14)/G14) -> 0.3
B15: Тепло/шумо изоляция | C15: 1 | D15: компл. | E15: 37500 | G15: 37500 | H15: 0.8 | I15: ='Данные для расчета'!C10*C15 -> 30000 | L15: 30000 | M15: 0.2
B16: Установка диффузора/решётки, адаптера | C16: 1 | D16: компл. | E16: 56250 | G16: 56250 | H16: 0.8 | I16: ='Данные для расчета'!C11*C16 -> 45000 | L16: 45000 | M16: 0.2
B17: Расходные материалы, крепёж | C17: 1 | D17: компл. | E17: 6206.896552 | G17: 6206.896552 | H17: 0.725 | I17: =C17*Узлы!D117 -> 4500 | L17: =SUM(I17:K17) -> 4500 | M17: 0.275
A18: Итого материал: | G18: =SUM(E11:E17) -> 300849.7537 | L18: =SUM(I11:I17) -> 234500 | M18: =IF(G18=0,"",(G18-L18)/G18) -> 0.2205411601 | N18: =(SUM(G18:G19)-SUM(L18:L19))/SUM(G18:G19) -> 0.4405683384
A19: Работа: | G19: =L19*K48*2.7 -> 350125.2 | L19: =J11+K11 -> 129676 | M19: 0.6296296296
A20: Приточно-вытяжная вентиляция
A21: Материалы/услуги | B21: Описание | C21: Кол-во | D21: Ед.изм | E21: Мат-ал, руб | F21: Работа, руб | G21: Итого, руб | I21: Материал | J21: Бригада | K21: Прораб | L21: Итого | M21: Рента
A22: Монтаж и обвязка приточно-вытяжной установки | B22: ='Данные для расчета'!B5 -> ВБИТЬ НАИМЕНОВАНИЕ УСТАНОВКИ | C22: 1 | D22: шт | E22: =I22/H22*$J$48 -> 350000 | G22: =E22+F22 -> 350000 | H22: 0.7 | I22: ='Данные для расчета'!C5*C22 -> 245000 | J22: =Работы!E18 -> 54550 | K22: =Работы!G18 -> 12596.6 | L22: =SUM(I22:K22) -> 312146.6 | M22: =IF(G22=0,"",(G22-I22)/G22) -> 0.3
B23: ='Данные для расчета'!B17 -> ВБИТЬ МОДЕЛЬ ЗАСЛОНКИ | C23: 1 | D23: шт | E23: 34285.71429 | G23: =E23+F23 -> 34285.71429 | H23: 0.7 | I23: ='Данные для расчета'!C17*C23 -> 24000 | L23: 24000 | M23: =IF(G23=0,"",(G23-I23)/G23) -> 0.3
B24: Комплект фильтров для первого обслуживания (Фильтр карманный F5, комплект 2 шт.) | C24: 1 | D24: шт | E24: 2000 | G24: 2000 | H24: 0.7 | I24: =C24*Узлы!D16 -> 1400 | L24: 1400 | M24: 0.3
B25: ='Данные для расчета'!B18 -> ВБИТЬ МОДЕЛЬ ПРИТОЧНОЙ/ПРИТОЧНО-ВЫТЯЖНОЙ РЕШЕТКИ, ЦВЕТ | C25: 1 | D25: шт | E25: 16428.57143 | G25: 16428.57143 | H25: 0.7 | I25: ='Данные для расчета'!C18*C25 -> 11500 | L25: 11500 | M25: =IF(G25=0,"",(G25-I25)/G25) -> 0.3
B26: =Узлы!A140 -> Аэратор D250 на кровле, цвет стандарт | C26: 1 | D26: шт | E26: 53557.89474 | G26: 53557.89474 | H26: 0.95 | I26: =C26*50880 -> 50880 | L26: 50880 | M26: 0.05
B27: Кронштейны для напольного/настенного крепления | C27: 1 | D27: компл. | E27: 5942.857143 | G27: =E27+F27 -> 5942.857143 | H27: 0.7 | I27: =C27*Узлы!D97 -> 4160 | L27: 4160 | M27: 0.3
B28: Электроподключения установки, пульта, заслонок | C28: 1 | D28: компл. | E28: 5892.857143 | G28: =E28+F28 -> 5892.857143 | H28: 0.7 | I28: =C28*Узлы!D118 -> 4125 | L28: 4125 | M28: 0.3
B29: Датчик СО2 | C29: 1 | D29: шт | E29: 9250 | G29: 9250 | H29: 0.7 | I29: =C29*Узлы!D86 -> 6475 | L29: 6475 | M29: 0.3
B30: Комплект шумоглушителей и дроссельных клапанов (2шумоглишителя, 2клапана) | C30: 1 | D30: компл. | E30: 3685.714286 | G30: 3685.714286 | H30: 0.7 | I30: ='Данные для расчета'!C19 -> 2580 | L30: 2580 | M30: 0.3
B31: Магистральные воздуховоды и фасонные изделия | C31: 1 | D31: компл. | E31: 57142.85714 | G31: 57142.85714 | H31: 0.7 | I31: ='Данные для расчета'!C9*C31 -> 40000 | L31: 40000 | M31: 0.3
B32: Изоляция, крепеж, расходные материалы | C32: 1 | D32: компл. | E32: 30841.42857 | G32: =E32+F32 -> 30841.42857 | H32: 0.7 | I32: =C32*Узлы!D131 -> 21589 | L32: =SUM(I32:K32) -> 21589 | M32: =IF(G32=0,"",(G32-I32)/G32) -> 0.3
A33: Итого материал: | G33: =SUM(E22:E32) -> 569027.8947 | L33: =SUM(I22:I32) -> 411709 | M33: =IF(G33=0,"",(G33-L33)/G33) -> 0.2764695654 | N33: =(SUM(G33:G34)-SUM(L33:L34))/SUM(G33:G34) -> 0.4283101387
A34: Работа: | G34: =L34*4*K48 -> 268586.4 | L34: =J22+K22 -> 67146.6 | M34: 0.75
A35: Дополнительно
A36: Материалы/услуги | B36: Описание | C36: Кол-во | D36: Ед.изм | E36: Мат-ал, руб | F36: Работа, руб | G36: Итого, руб | I36: Материал | J36: Бригада | K36: Прораб | L36: Итого | M36: Рента
A37: Проходные отверстия в плите | B37: Алмазное сверление | C37: 5 | D37: шт. | F37: =IF($C$37=0,0, IF($C$37<4,9000, IF($C$37>3,9000+2300*($C$37-3)))) -> 13600 | G37: =F37+E37 -> 13600 | J37: =IF($C$37=0,0, IF($C$37<4,6000, IF($C$37>3,6000+1700*($C$37-3)))) -> 9400
A38: Подготовительные и накладные расходы | B38: Приемка этапа работ инженерами технического надзора, соблюдение стандарта компании. Пуско-наладочные работы | C38: 1 | D38: Усл. | F38: 31000 | G38: =F38*C38 -> 31000 | J38: =1500+1500+1500+4200+13750+13750 -> 36200 | K38: =2500+800+2750 -> 6050 | L38: =5500+6500 -> 12000
A39: Транспортные расходы | B39: Доставка оборудования и материалов на объект | C39: 1 | D39: усл. | F39: =L39/0.8 -> 18750 | G39: =F39 -> 18750 | J39: 5000 | K39: 5000 | L39: 15000
A40: Итого по смете: | F40: =SUM(F33:G34,G37:G39,#REF!) ->  | G40: =G8+G33+G34+G37+G38+G39+G18+G19 -> 1600631.556 | I40: =L18+L33 -> 646209 | J40: =J11+J22+SUM(J37:J39) -> 213213.3333 | K40: =K11+K22+SUM(K37:K39) -> 45259.26667 | L40: =SUM(L37:L39,I40:K40)+L8 -> 963331.6 | M40: =(G42-L40)/G42 -> 0.3981553117
A41: Скидка: | G41: =G40*M41 -> 0
A42: Итого по смете со скидкой: | F42: =F40-G41 ->  | G42: =G40-G41 -> 1600631.556
A43: * При выполнении разводки под потолком необходимо добавить декоративный короб. При выполнении разводки в межэтажном перекрытии необходима дополнительная обрешётка.
A44: ** ПНР выполняется по факту готовности объекта
G45: =Узлы!D1 -> 2024-03-20 | J45: Коэффициент для ренты
J47: Мат | K47: Раб
J48: 1 | K48: 1

Sheet Узлы
A1: С электрическим догревателем: | D1: 2024-03-20
B2: Розничная цена | C2: Скидка | D2: Цена Гуд Вуд
A3: 1. Приточно-вытяжная установка Zenit Standart 300 Е с 2ступ рекуператором, электронагревателем, автоматикой | B3: 252000 | C3: 0.3 | D3: =B3*(1-C3) -> 176400
A4: Заслонка D160 с электроприводом и возвратной пружиной | B4: 20100 | C4: 0.3 | D4: =B4*(1-C4) -> 14070
A5: Блок охлаждения:
A6: NEW COOL-BOX i 160D-400 2,0 кВ | B6: 79000 | C6: 0.3 | D6: =B6*(1-C6) -> 55300
A7: ККБ NEW COOL-BOX k 2.0 | B7: 62000 | C7: 0.3 | D7: =B7*(1-C7) -> 43400
A8: Комплект фильтров для первого обслуживания (Фильтр карманный F5) | B8: 1800 | C8: 0.3 | D8: =B8*(1-C8) -> 1260
A9: Комбинированная приточно-вытяжная решётка 160D | B9: 7000 | C9: 0.3 | D9: =B9*(1-C9) -> 4900
A11: 1. Приточно-вытяжная установка Zenit 500 Standart EL/EL Е 2ст рекуператором, с электронагревателем, автоматикой | B11: 298000 | C11: 0.3 | D11: =B11*(1-C11) -> 208600
A12: Заслонка D200 с электроприводом и возвратной пружиной | B12: 20600 | C12: 0.3 | D12: =B12*(1-C12) -> 14420
A13: Блок охлаждения:
A14: NEW COOL-BOX i 200D-600 2,5 кВт | B14: 81000 | C14: 0.3 | D14: 56700
A15: ККБ NEW COOL-BOX k 2.5 | B15: 71000 | C15: 0.3 | D15: 49700
A16: Комплект фильтров для первого обслуживания (Фильтр карманный F5, комплект 2 шт.) | B16: 2000 | C16: 0.3 | D16: 1400
A17: Комбинированная приточно-вытяжная решётка 200D | B17: 8500 | C17: 0.3 | D17: 5950
A19: 1. Приточно-вытяжная установка Zenit 700 Standart EL/EL Е 2ст рекуператором, с электронагревателем, автоматикой | B19: 310000 | C19: 0.3 | D19: 217000
A20: Заслонка D250 с электроприводом и возвратной пружиной | B20: 23400 | C20: 0.3 | D20: 16380
A21: Блок охлаждения:
A22: NEW COOL-BOX i 250D-1000 3,5 кВт | B22: 106000 | C22: 0.3 | D22: 74200
A23: ККБ NEW COOL-BOX k 3.5 | B23: 92000 | C23: 0.3 | D23: 64400
A24: Комплект фильтров для первого обслуживания (Фильтр карманный F5, комплект 2 шт.) | B24: 2500 | C24: 0.3 | D24: 1750
A25: Комбинированная приточно-вытяжная решётка 250D | B25: 10000 | C25: 0.3 | D25: 7000
A27: 1. Приточно-вытяжная установка Zenit 350 HECO EL/EL Е с 3ступ рекуперацией с электронагревателем, автоматикой | B27: 265000 | C27: 0.3 | D27: 185500
A28: Заслонка D160 с электроприводом и возвратной пружиной | B28: 20100 | C28: 0.3 | D28: 14070
A29: Блок охлаждения:
A30: NEW COOL-BOX i 160D-400 2,0 кВ | B30: 79000 | C30: 0.3 | D30: 55300
A31: ККБ NEW COOL-BOX k 2.0 | B31: 62000 | C31: 0.3 | D31: 43400
A32: Комплект фильтров для первого обслуживания (Фильтр карманный F5) | B32: 1800 | C32: 0.3 | D32: 1260
A33: Комбинированная приточно-вытяжная решётка 160D | B33: 7000 | C33: 0.3 | D33: 4900
A35: 1. Приточно-вытяжная установка Zenit 550 HECO EL/EL E с рекуперацией с электронагревателем, автоматикой | B35: 295000 | C35: 0.3 | D35: 206500
A36: Заслонка D200 с электроприводом и возвратной пружиной | B36: 20600 | C36: 0.3 | D36: 14420
A37: Блок охлаждения:
A38: NEW COOL-BOX i 200D-600 2,5 кВт | B38: 81000 | C38: 0.3 | D38: 56700
A39: ККБ NEW COOL-BOX k 2.5 | B39: 71000 | C39: 0.3 | D39: 49700
A40: Комплект фильтров для первого обслуживания (Фильтр карманный F5, комплект 2 шт.) | B40: 2000 | C40: 0.3 | D40: 1400
A41: Комбинированная приточно-вытяжная решётка 200D | B41: 8500 | C41: 0.3 | D41: 5950
A43: 1. Приточно-вытяжная установка Zenit 750 HECO EL/EL E с рекуперацией с электронагревателем, автоматикой | B43: 468000 | C43: 0.3 | D43: 327600 | F43: 430000
A44: Заслонка D250 с электроприводом и возвратной пружиной | B44: 23400 | C44: 0.3 | D44: 16380 | F44: 16100
A45: Блок охлаждения:
A46: NEW COOL-BOX i 250D-1000 3,5 кВт | B46: 106000 | C46: 0.3 | D46: 74200 | F46: 80000
A47: ККБ NEW COOL-BOX k 3.5 | B47: 92000 | C47: 0.3 | D47: 64400 | F47: 87000
A48: Комплект фильтров для первого обслуживания (Фильтр карманный F5, комплект 2 шт.) | B48: 2750 | C48: 0.3 | D48: 1925 | F48: 2750
A49: Комбинированная приточно-вытяжная решётка 250D | B49: 10000 | C49: 0.3 | D49: 7000 | F49: 12350
A51: С водяным догревателем:
A52: 1. Приточно-вытяжная установка Zenit 700 Standart EL/EL W 2ст рекуператором, с водяным нагревателем и смесительным узлом, автоматикой | B52: 427000 | C52: 0.3 | D52: =B52*(1-C52) -> 298900
A53: Заслонка D250 с электроприводом и возвратной пружиной | B53: 20100 | C53: 0.3 | D53: =B53*(1-C53) -> 14070
A54: Блок охлаждения: | D54: =B54*0.7 -> 0
A55: NEW COOL-BOX i 250D-1000 3,5 кВт | B55: 106000 | C55: 0.3 | D55: =B55*(1-C55) -> 74200
A56: ККБ NEW COOL-BOX k 3.5 | B56: 92000 | C56: 0.3 | D56: =B56*(1-C56) -> 64400
A57: Блок увлажнителя:
A58: HumiBox Pump 3 | B58: 87000 | C58: 0.3 | D58: =B58*(1-C58) -> 60900
A59: HumiBox 1000 | B59: 129000 | C59: 0.3 | D59: =B59*(1-C59) -> 90300
A60: Комплект фильтров для первого обслуживания (Фильтр карманный F5, комплект 2 шт.) | B60: 2500 | C60: 0.3 | D60: =B60*(1-C60) -> 1750
A61: Комбинированная приточно-вытяжная решётка 250D | B61: 10000 | C61: 0.3 | D61: =B61*(1-C61) -> 7000
A63: 1. Приточно-вытяжная установка Zenit 550 HECO EL/EL W с рекуперацией с водяным нагревателем и смесительным узлом, автоматикой | B63: 420000 | C63: 0.3 | D63: =B63*(1-C63) -> 294000
A64: Заслонка D200 с электроприводом и возвратной пружиной | B64: 20600 | C64: 0.3 | D64: =B64*(1-C64) -> 14420
A65: Блок охлаждения:
A66: NEW COOL-BOX i 200D-600 2,5 кВт | B66: 81000 | C66: 0.3 | D66: =B66*(1-C66) -> 56700
A67: ККБ NEW COOL-BOX k 2.5 | B67: 71000 | C67: 0.3 | D67: =B67*(1-C67) -> 49700
A68: Блок увлажнителя:
A69: HumiBox Pump 3 | B69: 87000 | C69: 0.3 | D69: =B69*(1-C69) -> 60900
A70: HumiBox 600 | B70: 91000 | C70: 0.3 | D70: =B70*(1-C70) -> 63700
A71: Комплект фильтров для первого обслуживания (Фильтр карманный F5, комплект 2 шт.) | B71: 2000 | C71: 0.3 | D71: =B71*(1-C71) -> 1400
A72: Комбинированная приточно-вытяжная решётка 200D | B72: 8500 | C72: 0.3 | D72: =B72*(1-C72) -> 5950
A74: 1. Приточно-вытяжная установка Zenit 750 HECO EL/EL W с рекуперацией с электронагревателем, автоматикой | B74: 612000 | C74: 0.3 | D74: =B74*(1-C74) -> 428400
A75: Заслонка D250 с электроприводом и возвратной пружиной | B75: 23400 | C75: 0.3 | D75: =B75*(1-C75) -> 16380
A76: Блок охлаждения:
A77: NEW COOL-BOX i 250D-1000 3,5 кВт | B77: 106000 | C77: 0.3 | D77: =B77*(1-C77) -> 74200
A78: ККБ NEW COOL-BOX k 3.5 | B78: 92000 | C78: 0.3 | D78: =B78*(1-C78) -> 64400
A79: Блок увлажнителя:
A80: HumiBox Pump 3 | B80: 87000 | C80: 0.3 | D80: =B80*(1-C80) -> 60900
A81: HumiBox 1000 | B81: 129000 | C81: 0.3 | D81: =B81*(1-C81) -> 90300
A82: Комплект фильтров для первого обслуживания (Фильтр карманный F5, комплект 2 шт.) | B82: 2750 | C82: 0.3 | D82: =B82*(1-C82) -> 1925
A83: Комбинированная приточно-вытяжная решётка 250D | B83: 10000 | C83: 0.3 | D83: =B83*(1-C83) -> 7000
A85: Датчики СО2 и автоматика:
A86: Встроенный в установку датчик CO2 | B86: 9250 | C86: 0.3 | D86: =B86*(1-C86) -> 6475
A87: Встроенный в установку датчик Stereo VAV | B87: 8650 | C87: 0.3 | D87: 6055
A88: Встроенный в установку датчик VAV | B88: 5000 | C88: 0.3 | D88: 3500
A89: Пульт в сборе | B89: 22000 | C89: 0.3 | D89: 15400
A91: Воздуховод гофрированный 2-х слойный в бухте D75, 50м | B91: 25000 | C91: 0.2 | D91: =B91*(1-C91) -> 20000
A92: Муфты D75 для подключения диффузоров | B92: 350 | C92: 0.2 | D92: 280
A93: Фланец Schiberg d75 мм | B93: 500 | C93: 0.2 | D93: 400
A94: Заглушка Schiberg d75 | B94: 150 | C94: 0.2 | D94: 120
A95: Дроссель для гофрир. воздуховода Schiberg d75 | B95: 150 | C95: 0.2 | D95: 120
A96: Муфта соединительная Schiberg d75 - 300 руб | B96: 350 | C96: 0.2 | D96: 280
A97: Кронштейны для напольного/настенного крепления - (кронштейн настенный, 4 виброопоры, площадка крепежная) | B97: 5200 | C97: 0.2 | D97: 4160
A99: Комплект шумоглушителей и дроссельных клапанов:
A100: Заслонка 125 с приводом и возвратной пружиной | B100: 19300 | C100: =$C$91 -> 0.2 | D100: =B100*(1-C100) -> 15440 | E100: =SUM(D100:D104)/5 -> 17360
A101: Заслонка 160 с приводом и возвратной пружиной | B101: 20100 | C101: 0.2 | D101: =B101*(1-C101) -> 16080
A102: Заслонка 200 с приводом и возвратной пружиной | B102: 20600 | C102: 0.2 | D102: =B102*(1-C102) -> 16480
A103: Заслонка 250 с приводом и возвратной пружиной | B103: 23400 | C103: 0.2 | D103: =B103*(1-C103) -> 18720
A104: Заслонка 315 с приводом и возвратной пружиной | B104: 25100 | C104: 0.2 | D104: =B104*(1-C104) -> 20080
F105: Используемые ШГ
A106: Шумоглушитель для круглых каналов Д125/900 | B106: 5700 | C106: 0.2 | D106: =B106*(1-C106) -> 4560 | E106: =SUM(D106:D115)/10 -> 5896
A107: Шумоглушитель для круглых каналов Д160/900 | B107: 6700 | C107: 0.2 | D107: 5360
A108: Шумоглушитель для круглых каналов Д200/900 | B108: 7900 | C108: 0.2 | D108: 6320 | F108: =D108 -> 6320
A109: Шумоглушитель для круглых каналов Д250/900 | B109: 9400 | C109: 0.2 | D109: 7520 | F109: =D109 -> 7520
A110: Шумоглушитель для круглых каналов Д315/900 | B110: 13000 | C110: 0.2 | D110: 10400 | F110: =D110 -> 10400
A111: Шумоглушитель для круглых каналов Д125/600 | B111: 4100 | C111: 0.2 | D111: 3280
A112: Шумоглушитель для круглых каналов Д160/600 | B112: 4900 | C112: 0.2 | D112: 3920
A113: Шумоглушитель для круглых каналов Д200/600 | B113: 5700 | C113: 0.2 | D113: 4560
A114: Шумоглушитель для круглых каналов Д250/600 | B114: 6800 | C114: 0.2 | D114: 5440
A115: Шумоглушитель для круглых каналов Д315/600 | B115: 9500 | C115: 0.2 | D115: 7600
A117: Расходные материалы, крепёж на первый этап | D117: 4500 | E117: цена примерная со слов Виктора
A118: Электроматериал для подключения вент.установки | D118: =16500/4 -> 4125 | E118: узел электрики на ПНР /4 со слов Виктора
A119: Комплект из счёта *2 | D119: =$G$119 -> 19398 | E119: согласно счёта (см. правее) | G119: 19398 | H119: Шумоглушители, дроссельные клапаны, гибкие вставки 2 этап
A121: Коллектор (воздухораспределительная коробка) на 4-6 выходов | B121: 8400 | C121: 0.15 | D121: =B121*(1-C121) -> 7140 | E121: Письмо Турков от 05.10.2023
A122: Коллектор (воздухораспределительная коробка) на 8-10 выходов | B122: 9800 | C122: 0.15 | D122: =B122*(1-C122) -> 8330
A123: Коллектор (воздухораспределительная коробка) на 12 выходов | B123: 13800 | C123: 0.15 | D123: =B123*(1-C123) -> 11730
A124: Коллектор (воздухораспределительная коробка) на 16 выходов | B124: 18400 | C124: 0.15 | D124: =B124*(1-C124) -> 15640
A125: Коллектор (воздухораспределительная коробка) на 20 выходов | B125: 25000 | C125: 0.15 | D125: =B125*(1-C125) -> 21250
A127: Адаптеры для подключения плоских решеток (длина до 500) | B127: =5400+1700 -> 7100 | C127: 0.15 | D127: =B127*(1-C127) -> 6035 | E127: Оптимум Lx150x10
A128: Адаптеры для подключения плоских решеток (нестандарт длина 600-800) | B128: =7200+1700 -> 8900 | C128: 0.15 | D128: =B128*(1-C128) -> 7565 | E128: Оптимум Lx150x10
A130: Магистральные воздуховоды и фасонные изделия | B130: =$G$179 -> 34439 | D130: =B130 -> 34439 | E130: согласно счёта (см. правее ниже)
A131: Изоляция, крепеж, расходные материалы | B131: =$G$136 -> 21589 | D131: =B131 -> 21589 | E131: согласно ЗНО (см. правее ниже)
A133: Пленум SCHIBERG (для кругл. диффузоров) | B133: 4600 | C133: 0.15 | D133: =B133*(1-C133) -> 3910
A135: Установка круглого диффузора | D135: 3000 | E135: среднее значение
A136: Установка прямоугольной решётки (до 500мм) в адаптер, материал | B136: =9100 -> 9100 | C136: 0.15 | D136: =B136*(1-C136) -> 7735 | E136: Оптимум Lx150x10 | G136: 21589 | H136: Изоляция 2 этап
A137: Нестандартная решётка | B137: 11880 | C137: 0.15 | D137: =B137*(1-C137) -> 10098
A139: Наружная накладная решетка 300*300 | D139: 1500 | E139: РэдВент Счет на оплату № 28725 от 31 октября 2023 г.
A140: Аэратор D250 на кровле, цвет стандарт | D140: 18000
G179: 34439 | H179: Оцинковка 2 этап

Sheet Проект до 250м²
A2: Прайс-лист на проектные работы квартиры и дома до 250 м² | K2: Итоговое коммереское предложение
A3: 1 | B3: Предварительная стадия | F3: Сумма | K3: 1 | L3: Предварительная стадия | M3: шт | N3: 1 | O3: =F9 -> 10800
A4: 1.1 | B4: Сбор исходных данных | C4: шт | D4: 1 | E4: 3600 | F4: =E4*D4 -> 3600 | K4: 2 | L4: Раздел вентиляции | M4: м2 | N4: =D11 -> 109.29 | O4: =F18 -> 25016.46
A5: 1.2 | B5: Выезд на объект (в пределах МКАД) | C5: шт | D5: 0 | E5: 6000 | F5: =E5*D5 -> 0 | G5: Убирается из сметы при отсутвии потребности выезда | K5: 3 | L5: Раздел кондиционирования | M5: м2 | N5: =D23 -> 0 | O5: =F30 -> 0
A6: 1.3 | B6: Составление технического задания вентиляция | C6: шт | D6: 1 | E6: 4800 | F6: =E6*D6 -> 4800 | K6: 4 | L6: Раздел увлажнения | M6: м2 | N6: =D11 -> 109.29 | O6: =F32+F33 -> 0
A7: 1.4 | B7: Составление технического задания кондиционирование | C7: шт | D7: 0 | E7: 4800 | F7: =E7*D7 -> 0 | G7: Убирается из сметы при отсутвии кондиционирования | L7: ИТОГО по предложению | O7: =SUM(O3:O6) -> 35816.46
A8: 1.5 | B8: Отправка проекта и документов | C8: шт | D8: 1 | E8: 2400 | F8: =E8*D8 -> 2400
B9: ИТОГО по предварительной стадии: | F9: =SUM(F4:F8) -> 10800
A10: 2 | B10: Проект вентиляции | F10: Сумма
A11: 2.1 | B11: Расчет и утверждение воздухообмена | C11: м² | D11: =58.45+55.73-2.7-2.19 -> 109.29 | E11: =20*1.2 -> 24 | F11: =E11*D11 -> 2622.96
A12: 2.2 | B12: Подбор оборудования вентиляции | C12: м² | D12: 109.29 | E12: =20*1.2 -> 24 | F12: 2622.96
A13: 2.3 | B13: Планы системы вентиляции | C13: м² | D13: 109.29 | E13: =30*1.2 -> 36 | F13: 3934.44 | K13: Заказчику направлять только данный вариант КП, подробную смету только при доп. запросе заказчика
A14: 2.4 | B14: Спецификация вентиляции | C14: м² | D14: 109.29 | E14: =35*1.2 -> 42 | F14: 4590.18
A15: 2.5 | B15: Изометрическая схема вентиляция | C15: м² | D15: 109.29 | E15: =20*1.2 -> 24 | F15: 2622.96
A16: 2.6 | B16: Техническое задание на подключение силового электропитания и план автоматизации | C16: м² | D16: 109.29 | E16: =20*1.2 -> 24 | F16: 2622.96
A17: 2.7 | B17: Изготовление пояснительной записки | C17: шт | D17: 1 | E17: =5000*1.2 -> 6000 | F17: =E17*D17 -> 6000
B18: ИТОГО за раздел вентиляции: | F18: =SUM(F11:F17) -> 25016.46
A19: 3 | B19: Проект кондиционирования | F19: Сумма | G19: Указывать площадь ТОЛЬКО обслуживаемых помещений (Σ спален, детских, кабинетов)
A20: 3.1 | B20: Расчет теплопритоков | C20: м² | D20: 0 | E20: =30*1.2 -> 36 | F20: =D20*E20 -> 0
A21: 3.2 | B21: Подбор оборудования кондиционирования | C21: м² | D21: 0 | E21: =20*1.2 -> 24 | F21: =D21*E21 -> 0
A22: 3.3 | B22: Планы системы канального кондиционирования | C22: м² | D22: 0 | E22: =35*1.2 -> 42 | F22: 0 | G22: Убирается из сметы при отсутвии канального кондиционирования
A23: 3.4 | B23: Планы системы фреонового трубопровода и дренажа | C23: м² | D23: 0 | E23: =30*1.2 -> 36 | F23: 0
A24: 3.5 | B24: Спецификация вентразводки канального кондиционирования | C24: м² | D24: 0 | E24: =20*1.2 -> 24 | F24: 0 | G24: Убирается из сметы при отсутвии канального кондиционирования
A25: 3.6 | B25: Спецификация фреонового трубопровода и дренажа | C25: м² | D25: 0 | E25: =20*1.2 -> 24 | F25: 0
A26: 3.7 | B26: Изометрическая схема вентразводки канального кондиционирования | C26: м² | D26: 0 | E26: =20*1.2 -> 24 | F26: 0 | G26: Убирается из сметы при отсутвии канального кондиционирования
A27: 3.8 | B27: Изометрическая схема фреонового трубопровода и дренажа | C27: м² | D27: 0 | E27: =20*1.2 -> 24 | F27: 0
A28: 3.9 | B28: Техническое задание на подключение силового электропитания и автоматизации кондиционирования | C28: м² | D28: 0 | E28: =20*1.2 -> 24 | F28: 0
A29: 3.10 | B29: Изготовление пояснительной записки | C29: шт | D29: 0 | E29: =5000*1.2 -> 6000 | F29: 0
B30: ИТОГО за раздел кондиционирования: | F30: =SUM(F20:F29) -> 0 | G30: при потребности в центральном охладителе в проекте в ячейке площадь указывать 0 м², стоимость давать фиксированную 10 000 руб.
A31: 4 | B31: Проект увлажнения | F31: Сумма | G31: При расчете проекта увлажнения выбрать корректную площадь из предложенных вариантов
A32: 4.1 | B32: Объект менее 100 м² | C32: шт | D32: 0 | E32: 15000 | F32: =E32*D32 -> 0
A33: 4.2 | B33: Объект более 100 м² до 250 м² | C33: шт | D33: 0 | E33: 10000 | F33: =E33*D33 -> 0
B34: ИТОГО по предложению | F34: =(F9+F18+F30+F32+F33) -> 35816.46
A37: 5 | B37: ОПЦИОНАЛЬНО | F37: Сумма
A38: 5.1 | B38: Дополнительная рабочая встреча | C38: шт | D38: 1 | E38: =5000*1.2 -> 6000 | F38: =E38*D38 -> 6000
A39: 5.2 | B39: VAV система | C39: шт | D39: 1 | E39: =10000*1.2 -> 12000 | F39: =E39*D39 -> 12000
A40: 5.3 | B40: Выезд на объект до 50км от МКАД | C40: шт | D40: 1 | E40: =8000*1.2 -> 9600 | F40: =E40*D40 -> 9600
A42: При нестандартных объектах суммы разделов умножать на дополнительный коэффициент
A43: 1 | B43: Коммерческие и административные помещения | E43: 0.7
A44: 2 | B44: Фахверк | E44: 1.5
B47: Примечания:
A48: 1 | B48: Возможно изготовление монтажной схемы. Тогда позиции, общие данные, пояснительная записка, изометрические схемы вычитаются из стоимости проекта
A49: 2 | B49: Средняя цена за 1 м² | D49: м² | E49: руб/м²
B50: Проект вентиляции | D50: =D15 -> 109.29 | E50: =F18/D50 -> 228.8998079
B51: Проект канального кондиционирования | D51: =D22 -> 0 | E51: =F30/D51 -> 
B52: Проект настенного кондиционирования | D52: =D20 -> 0 | E52: =F30/D52 -> 
B53: Проект увлажнения | D53: =D11 -> 109.29 | E53: =(F32+F33)/D53 -> 0
A54: 3 | B54: ОБЩАЯ СТОИМОСТЬ | E54: =F34/D11 -> 327.719462

Sheet Проект до 500 м²
A2: Прайс-лист на проектные работы квартиры и дома от 250 м² до 500 м² | K2: Итоговое коммереское предложение
A3: 1 | B3: Предварительная стадия | F3: Сумма | K3: 1 | L3: Предварительная стадия | M3: шт | N3: 1 | O3: =F9 -> 15600
A4: 1.1 | B4: Сбор исходных данных | C4: шт | D4: 1 | E4: =3000*1.2 -> 3600 | F4: =E4*D4 -> 3600 | K4: 2 | L4: Раздел вентиляции | M4: м² | N4: =D11 -> 463 | O4: =F18 -> 79894.8
A5: 1.2 | B5: Выезд на объект (в пределах МКАД) | C5: шт | D5: 0 | E5: 8000 | F5: =E5*D5 -> 0 | G5: Убирается из сметы при отсутвии потребности выезда | K5: 3 | L5: Раздел кондиционирования | M5: м² | N5: =D20 -> 282 | O5: =F30 -> 47284.8
A6: 1.3 | B6: Составление технического задания вентиляция | C6: шт | D6: 1 | E6: =4000*1.2 -> 4800 | F6: =E6*D6 -> 4800 | K6: 4 | L6: Раздел увлажнения | M6: м² | N6: =D11 -> 463 | O6: =F32 -> 0
A7: 1.4 | B7: Составление технического задания кондиционирование | C7: шт | D7: 1 | E7: =4000*1.2 -> 4800 | F7: =E7*D7 -> 4800 | G7: Убирается из сметы при отсутвии кондиционирования | L7: ИТОГО по предложению | O7: =SUM(O3:O6) -> 142779.6
A8: 1.5 | B8: Отправка проекта и документов | C8: шт | D8: 1 | E8: =2000*1.2 -> 2400 | F8: =E8*D8 -> 2400
B9: ИТОГО по предварительной стадии: | F9: =SUM(F4:F8) -> 15600
A10: 2 | B10: Проект вентиляции | F10: Сумма
A11: 2.1 | B11: Расчет и утверждение воздухообмена | C11: м² | D11: 463 | E11: =18*1.2 -> 21.6 | F11: =E11*D11 -> 10000.8
A12: 2.2 | B12: Подбор оборудования вентиляции | C12: м² | D12: 463 | E12: =18*1.2 -> 21.6 | F12: =E12*D12 -> 10000.8 | K12: Заказчику направлять только данный вариант КП, подробную смету только при доп. запросе заказчика
A13: 2.3 | B13: Планы системы вентиляции | C13: м² | D13: 463 | E13: =28*1.2 -> 33.6 | F13: 15556.8
A14: 2.4 | B14: Спецификация вентиляции | C14: м² | D14: 463 | E14: =33*1.2 -> 39.6 | F14: 18334.8
A15: 2.5 | B15: Изометрическая схема вентиляция | C15: м² | D15: 463 | E15: =18*1.2 -> 21.6 | F15: 10000.8
A16: 2.6 | B16: Техническое задание на подключение силового электропитания и план автоматизации | C16: м² | D16: 463 | E16: =18*1.2 -> 21.6 | F16: 10000.8
A17: 2.7 | B17: Изготовление пояснительной записки | C17: шт | D17: 1 | E17: =5000*1.2 -> 6000 | F17: 6000
B18: ИТОГО за раздел вентиляции: | F18: =SUM(F11:F17) -> 79894.8
A19: 3 | B19: Проект кондиционирования* | F19: Сумма | G19: Указывать площадь ТОЛЬКО обслуживаемых помещений (Σ спален, детских кабинетов)
A20: 3.1 | B20: Расчет теплопритоков | C20: м² | D20: 282 | E20: =27*1.2 -> 32.4 | F20: =D20*E20 -> 9136.8
A21: 3.2 | B21: Подбор оборудования кондиционирования | C21: м² | D21: 282 | E21: =17*1.2 -> 20.4 | F21: =D21*E21 -> 5752.8
A22: 3.3 | B22: Планы системы канального кондиционирования | C22: м² | D22: 0 | E22: =32*1.2 -> 38.4 | F22: 0 | G22: Убирается из сметы при отсутвии канального кондиционирования
A23: 3.4 | B23: Планы системы фреонового трубопровода и дренажа | C23: м² | D23: 282 | E23: =27*1.2 -> 32.4 | F23: 9136.8
A24: 3.5 | B24: Спецификация вентразводки канального кондиционирования | C24: м² | D24: 0 | E24: =17*1.2 -> 20.4 | F24: 0 | G24: Убирается из сметы при отсутвии канального кондиционирования
A25: 3.6 | B25: Спецификация фреонового трубопровода и дренажа | C25: м² | D25: 282 | E25: =17*1.2 -> 20.4 | F25: 5752.8
A26: 3.7 | B26: Изометрическая схема вентразводки канального кондиционирования | C26: м² | D26: 0 | E26: =17*1.2 -> 20.4 | F26: 0 | G26: Убирается из сметы при отсутвии канального кондиционирования
A27: 3.8 | B27: Изометрическая схема фреонового трубопровода и дренажа | C27: м² | D27: 282 | E27: =17*1.2 -> 20.4 | F27: 5752.8
A28: 3.9 | B28: Техническое задание на подключение силового электропитания и автоматизации кондиционирования | C28: м² | D28: 282 | E28: =17*1.2 -> 20.4 | F28: 5752.8
A29: 3.10 | B29: Изготовление пояснительной записки | C29: шт | D29: 1 | E29: =5000*1.2 -> 6000 | F29: 6000
B30: ИТОГО за раздел кондиционирования: | F30: =SUM(F20:F29) -> 47284.8 | G30: при потребности в центральном охладителе в проекте в ячейке площадь указывать 0 м², стоимость давать фиксированную 15 000 руб.
A31: 4 | B31: Проект увлажнения | F31: Сумма
A32: 4.1 | B32: Объект от 250 м² до 500 м² | C32: шт | D32: 0 | E32: 10000 | F32: =E32*D32 -> 0
B33: ИТОГО по предложению | F33: =F9+F18+F30+F32 -> 142779.6
A35: 5 | B35: ОПЦИОНАЛЬНО | F35: Сумма
A36: 5.1 | B36: Дополнительная рабочая встреча | C36: шт | D36: 1 | E36: =5000*1.2 -> 6000 | F36: =E36*D36 -> 6000
A37: 5.2 | B37: VAV система | C37: шт | D37: 1 | E37: =10000*1.2 -> 12000 | F37: =E37*D37 -> 12000
A38: 5.3 | B38: Выезд на объект до 50км/МКАД | C38: шт | D38: 1 | E38: =8000*1.2 -> 9600 | F38: =E38*D38 -> 9600
A40: При нестандартных объектах суммы разделов умножать на дополнительный коэффициент
A41: 1 | B41: Коммерческие и административные помещения | E41: 0.7
A42: 2 | B42: Фахверк | E42: 1.5
B45: Примечания:
A46: 1 | B46: Возможно изготовление монтажной схемы. Тогда позиции, общие данные, пояснительная записка, изометрические схемы вычитаются из стоимости проекта
A47: 2 | B47: Средняя цена за 1 м² | D47: м² | E47: руб/м²
B48: Проект вентиляции | D48: =D15 -> 463 | E48: =F18/D48 -> 172.5589633
B49: Проект канального кондиционирования | D49: =D22 -> 0 | E49: =F30/D49 -> 
B50: Проект настенного кондиционирования | D50: =D20 -> 282 | E50: =F30/D50 -> 167.6765957
B51: Проект увлажнения | D51: =D11 -> 463 | E51: =F32/D51 -> 0
A52: 3 | B52: ОБЩАЯ СТОИМОСТЬ | E52: =F33/D11 -> 308.3792657

Sheet Проект более 500 м²
A2: Прайс-лист на проектные работы квартиры и дома более 500 м² | K2: Итоговое коммереское предложение
A3: 1 | B3: Предварительная стадия | F3: Сумма | K3: 1 | L3: Предварительная стадия | M3: шт | N3: 1 | O3: =F9 -> 15600
A4: 1.1 | B4: Сбор исходных данных | C4: шт | D4: 1 | E4: =3000*1.2 -> 3600 | F4: =E4*D4 -> 3600 | K4: 2 | L4: Раздел вентиляции | M4: м2 | N4: =D11 -> 860 | O4: =F18 -> 118488
A5: 1.2 | B5: Выезд на объект (в пределах МКАД) | C5: шт | D5: 0 | E5: 6000 | F5: =E5*D5 -> 0 | G5: Убирается из сметы при отсутвии потребности выезда | K5: 3 | L5: Раздел кондиционирования | M5: м2 | N5: =D20 -> 313 | O5: =F30 -> 48067.2
A6: 1.3 | B6: Составление технического задания вентиляция | C6: шт | D6: 1 | E6: =4000*1.2 -> 4800 | F6: =E6*D6 -> 4800 | K6: 4 | L6: Раздел увлажнения | M6: м2
A7: 1.4 | B7: Составление технического задания кондиционирование | C7: шт | D7: 1 | E7: =4000*1.2 -> 4800 | F7: =E7*D7 -> 4800 | G7: Убирается из сметы при отсутвии кондиционирования | L7: ИТОГО по предложению | O7: =SUM(O3:O6) -> 182155.2
A8: 1.5 | B8: Отправка проекта и документов | C8: шт | D8: 1 | E8: =2000*1.2 -> 2400 | F8: =E8*D8 -> 2400
B9: ИТОГО по предварительной стадии: | F9: =SUM(F4:F8) -> 15600
A10: 2 | B10: Проект вентиляции | F10: Сумма
A11: 2.1 | B11: Расчет и утверждение воздухообмена | C11: м² | D11: 860 | E11: =14*1.2 -> 16.8 | F11: =E11*D11 -> 14448
A12: 2.2 | B12: Подбор оборудования вентиляции | C12: м² | D12: 860 | E12: =14*1.2 -> 16.8 | F12: 14448
A13: 2.3 | B13: Планы системы вентиляции | C13: м² | D13: 860 | E13: =24*1.2 -> 28.8 | F13: 24768 | K13: Заказчику направлять только данный вариант КП, подробную смету только при доп. запросе заказчика
A14: 2.4 | B14: Спецификация вентиляции | C14: м² | D14: 860 | E14: =29*1.2 -> 34.8 | F14: 29928
A15: 2.5 | B15: Изометрическая схема вентиляция | C15: м² | D15: 860 | E15: =14*1.2 -> 16.8 | F15: 14448
A16: 2.6 | B16: Техническое задание на подключение силового электропитания и план автоматизации | C16: м² | D16: 860 | E16: =14*1.2 -> 16.8 | F16: 14448
A17: 2.7 | B17: Изготовление пояснительной записки | C17: шт | D17: 1 | E17: =5000*1.2 -> 6000 | F17: 6000
B18: ИТОГО за раздел вентиляции: | F18: =SUM(F11:F17) -> 118488
A19: 3 | B19: Проект кондиционирования | F19: Сумма | G19: Указывать площадь ТОЛЬКО обслуживаемых помещений (Σ спален, детских, кабинетов)
A20: 3.1 | B20: Расчет теплопритоков | C20: м² | D20: 313 | E20: =24*1.2 -> 28.8 | F20: =D20*E20 -> 9014.4
A21: 3.2 | B21: Подбор оборудования кондиционирования | C21: м² | D21: 313 | E21: =16*1.2 -> 19.2 | F21: 6009.6
A22: 3.3 | B22: Планы системы канального кондиционирования | C22: м² | D22: 0 | E22: =29*1.2 -> 34.8 | F22: 0 | G22: Убирается из сметы при отсутвии канального кондиционирования
A23: 3.4 | B23: Планы системы фреонового трубопровода и дренажа | C23: м² | D23: 313 | E23: =24*1.2 -> 28.8 | F23: 9014.4
A24: 3.5 | B24: Спецификация вентразводки канального кондиционирования | C24: м² | D24: 0 | E24: =16*1.2 -> 19.2 | F24: 0 | G24: Убирается из сметы при отсутвии канального кондиционирования
A25: 3.6 | B25: Спецификация фреонового трубопровода и дренажа | C25: м² | D25: 313 | E25: =16*1.2 -> 19.2 | F25: 6009.6
A26: 3.7 | B26: Изометрическая схема вентразводки канального кондиционирования | C26: м² | D26: 0 | E26: =16*1.2 -> 19.2 | F26: 0 | G26: Убирается из сметы при отсутвии канального кондиционирования
A27: 3.8 | B27: Изометрическая схема фреонового трубопровода и дренажа | C27: м² | D27: 313 | E27: =16*1.2 -> 19.2 | F27: 6009.6
A28: 3.9 | B28: Техническое задание на подключение силового электропитания и автоматизации кондиционирования | C28: м² | D28: 313 | E28: =16*1.2 -> 19.2 | F28: 6009.6
A29: 3.10 | B29: Изготовление пояснительной записки | C29: шт | D29: 1 | E29: =5000*1.2 -> 6000 | F29: =D29*E29 -> 6000
B30: ИТОГО за раздел кондиционирования: | F30: =SUM(F20:F29) -> 48067.2 | G30: при потребности в центральном охладителе в проекте, в ячейке площадь указывать 0 м², стоимость давать фиксированную 10 000 руб.
A31: 4 | B31: Проект увлажнения | F31: Сумма
A32: 4.1 | B32: Объект от 500 м² до 1000 м² | C32: шт | D32: 0 | E32: 10000 | F32: =E32*D32 -> 0
B33: ИТОГО по предложению | F33: =F9+F18+F30+F32 -> 182155.2
A35: 5 | B35: ОПЦИОНАЛЬНО | F35: Сумма
A36: 5.1 | B36: Дополнительная рабочая встреча | C36: шт | D36: 1 | E36: 5000 | F36: =E36*D36 -> 5000
A37: 5.4 | B37: VAV система | C37: шт | D37: 1 | E37: 10000 | F37: =E37*D37 -> 10000
A38: 5.5 | B38: Выезд на объект до 50км/МКАД | C38: шт | D38: 1 | E38: 8000 | F38: =E38*D38 -> 8000
A41: При нестандартных объектах суммы разделов умножать на дополнительный коэффициент
A42: 1 | B42: Коммерческие и административные помещения | E42: 0.7
A43: 2 | B43: Фахверк | E43: 1.5
B45: Примечания:
A46: 1 | B46: Возможно изготовление монтажной схемы. Тогда позиции, общие данные, пояснительная записка, изометрические схемы вычитаются из стоимости проекта
A47: 2 | B47: Средняя цена за 1 м² | D47: м² | E47: руб/м²
B48: Проект вентиляции | D48: =D11 -> 860 | E48: =F18/D48 -> 137.7767442
B49: Проект канального кондиционирования | D49: =D20 -> 313 | E49: =F30/D49 -> 153.5693291
B50: Проект настенного кондиционирования | D50: =D25 -> 313 | E50: =F30/D50 -> 153.5693291
B51: Проект увлажнения | D51: =D16 -> 860 | E51: =F32/D51 -> 0
A52: 3 | B52: ОБЩАЯ СТОИМОСТЬ | E52: =F33/D16 -> 211.8083721
